Cogmind - Beta 16 @@@ ROGUE MODE // 2025.12.13 @ 21:30:16 Player: McSaucyNugget Result: Escaped! Performance ------------- Evolutions (9) 4500 Regions Visited (26) 5200 Robots Destroyed (303) 1515 Value Destroyed (14922) 14922 Prototype IDs (80) 1600 Alien Tech Used (3) 600 Bonus (7699) 7699 TOTAL SCORE: 36036 Bonus ------- High Alert Combat Kills 1282 Follower Combat Kills 239 Registered with UFD 300 Met Optimus in HQ 500 Met Data Miner 300 Met Warlord at Base 500 MAIN.C Attacked Warlord 500 Warlord Defense Kills 1654 Win 3000 Friendly Fire -576 Cogmind --------- Core Integrity 897/1600 Matter 138/300 Energy 807/1350 System Corruption 6% Temperature Critical (594) Movement Rolling (160) Ox4 Location To Epsilon Eridani Parts ------- > --- POWER (1) -------- Quantum Reactor > --- PROPULSION (2) --- Centrium Wheel Centrium Wheel > --- UTILITY (20) ----- Advanced Heat Sink Huge Storage Unit Improved Energy Well Experimental Energy Well Spectral Analyzer Advanced Signal Interpreter Surveybot 17 Chip Quantum Capacitor Graphene Brace AEGIS Remote Shield Hacking Suite Makeshift Hacking Suite A0-MCA's Component Scanner Experimental System Guard > --- WEAPON (2) ------- Enhanced Nova Cannon > --- INVENTORY (25) --- Light Quantum Reactor High-capacity Storage Unit Experimental Matter Compressor (500) Deep Structural Scanner Faulty Experimental Shield Generator Experimental Shield Generator Long-range Tractor Beam Transdimensional Reconstructor Transdimensional Reconstructor Subatomic Replicator Gamma Rifle HERF Cannon Nova Cannon Enhanced Nova Cannon Improved Potential Cannon Multitool Peak State ------------ > --- POWER ------------ Improved Quantum Reactor > --- PROPULSION ------- Wheel Centrium Wheel > --- UTILITY ---------- Advanced Heat Sink Advanced Heat Sink Experimental Coolant Injector Huge Storage Unit Deep Structural Scanner Spectral Analyzer Advanced Sensor Array Advanced Signal Interpreter Surveybot 17 Chip Seismic Detector Core Analyzer Quantum Capacitor Improved Powered Armor Graphene Brace AEGIS Remote Shield Phase Redirector Makeshift Hacking Suite A0-MCA's Component Scanner Experimental System Guard > --- WEAPON ----------- HERF Cannon Enhanced Nova Cannon > --- INVENTORY -------- Quantum Reactor Compact Wheel Centrium Wheel Centrium Wheel Advanced Heat Sink High-capacity Storage Unit Improved Energy Well Experimental Energy Well Experimental Matter Compressor Advanced Signal Interpreter Energy Filter Quantum Capacitor Hacking Suite Long-range Tractor Beam Transdimensional Reconstructor Transdimensional Reconstructor Subatomic Replicator Nova Cannon Enhanced Nova Cannon Improved Potential Cannon Enhanced Hardcell Cannon Gamma Bomb Array Multitool [Rating: 182] Favorites ----------- Power Heavy Antimatter Reactor Engine Ion Engine Power Core Neutrino Core Reactor Heavy Antimatter Reactor Propulsion Wheel Wheel Wheel Utility Advanced Signal Interpreter Device Seismic Detector Storage Huge Storage Unit Processor Advanced Signal Interpreter Hackware Makeshift Hacking Suite Protection Layered Medium Armor Plating Artifact Phase Redirector Weapon Hardcell Cannon Energy Gun Small Laser Energy Cannon Heavy Neutron Cannon Ballistic Gun Heavy Machine Gun Ballistic Cannon Hardcell Cannon Launcher Subdweller Shrapnel Launcher Special Weapon Mining Laser Slashing Weapon Scythe Build | -11 -10 -10 -8 -8 -6 -6 -6 -6 -5 -5 -5 -5 -5 -4 -4 -4 -4 -4 -4 -4 -3 -3 -3 -2 -2 -1 ------- Run | Yrd Mat Sub Rec Scr Fac Low Low Dat Pro Fac Upp Upp Zhi Pro Fac Was Fac Upp Upp War Pro Res Tes Res Qua Acc Slots Evolved 18 | . . . . . 8 . . . . 2 . . . . 2 . . . . . . 2 . 2 . 2 Power . | . . . . . . . . . . . . . . . . . . . . . . . . . . . Propulsion . | . . . . . . . . . . . . . . . . . . . . . . . . . . . Utility 18 | . . . . . 8 . . . . 2 . . . . 2 . . . . . . 2 . 2 . 2 Weapon . | . . . . . . . . . . . . . . . . . . . . . . . . . . . Parts Attached 212 | 6 4 20 4 10 19 1 1 . 2 21 4 2 5 1 5 1 16 3 2 9 1 7 17 18 12 21 Power 16 | 1 . 2 1 1 1 . 1 . . 3 . . 1 . . . . . . . . . 2 1 1 1 Engine 7 | 1 . 2 1 1 1 . . . . 1 . . . . . . . . . . . . . . . . Core 3 | . . . . . . . 1 . . 2 . . . . . . . . . . . . . . . . Reactor 6 | . . . . . . . . . . . . . 1 . . . . . . . . . 2 1 1 1 Propulsion 27 | 2 . 4 1 2 2 . . . . 4 . . . . . . 2 2 . 1 . . 2 1 2 2 Treads . | . . . . . . . . . . . . . . . . . . . . . . . . . . . Leg . | . . . . . . . . . . . . . . . . . . . . . . . . . . . Wheel 27 | 2 . 4 1 2 2 . . . . 4 . . . . . . 2 2 . 1 . . 2 1 2 2 Hover . | . . . . . . . . . . . . . . . . . . . . . . . . . . . Flight . | . . . . . . . . . . . . . . . . . . . . . . . . . . . Utility 106 | 1 2 4 1 2 11 1 . . 2 11 3 1 3 1 3 1 11 1 . 4 . 4 12 10 5 12 Device 64 | . 1 1 . 2 7 . . . 2 7 2 1 2 1 3 1 5 1 . 2 . 1 8 7 2 8 Storage 8 | 1 1 . . . 1 . . . . 1 . . . . . . 2 . . . . . 1 . . 1 Processor 11 | . . . . . 2 1 . . . 1 . . . . . . 2 . . . . . 3 1 1 . Hackware 5 | . . . . . . . . . . . . . . . . . 1 . . . . 2 . 1 . 1 Protection 17 | . . 3 1 . 1 . . . . 2 1 . 1 . . . 1 . . 2 . 1 . 1 1 2 Artifact 1 | . . . . . . . . . . . . . . . . . . . . . . . . . 1 . Weapon 63 | 2 2 10 1 5 5 . . . . 3 1 1 1 . 2 . 3 . 2 4 1 3 1 6 4 6 Energy Gun 7 | 2 1 . . . 1 . . . . . . . . . . . . . . 1 . . . 1 1 . Energy Cannon 18 | . . 1 . 1 1 . . . . . . . . . 2 . 1 . 1 . 1 2 . 2 1 5 Ballistic Gun 11 | . . 6 . 2 3 . . . . . . . . . . . . . . . . . . . . . Ballistic Cannon 16 | . . 1 . 1 . . . . . 3 1 1 1 . . . 2 . 1 . . 1 1 1 2 . Launcher 4 | . 1 1 . . . . . . . . . . . . . . . . . 1 . . . . . 1 Special Weapon 6 | . . 1 . 1 . . . . . . . . . . . . . . . 2 . . . 2 . . Impact Weapon . | . . . . . . . . . . . . . . . . . . . . . . . . . . . Slashing Weapon 1 | . . . 1 . . . . . . . . . . . . . . . . . . . . . . . Piercing Weapon . | . . . . . . . . . . . . . . . . . . . . . . . . . . . Special Melee Weapon . | . . . . . . . . . . . . . . . . . . . . . . . . . . . Unidentified Prototypes 21 | . . 1 . . 1 . . . . 3 1 . 3 . 2 1 2 . . 5 . . 1 . 1 . Corrupted Parts 2 | . . . . . . . . . . . . . . . . . . . . . . . . . . 2 System Corruption 5 | . . . . . . . . . . . . . . . . . . . . . . . . . . 5 Parts Lost 66 | . 1 9 . 2 1 . . . . 4 . . . . . . 7 . . 1 . 1 5 12 1 22 Power 6 | . 1 1 . . . . . . . 1 . . . . . . . . . . . . 1 1 . 1 Propulsion 10 | . . 3 . . . . . . . 1 . . . . . . 1 . . 1 . . . 1 . 3 Utility 39 | . . 3 . 1 . . . . . 2 . . . . . . 6 . . . . 1 3 8 1 14 Weapon 11 | . . 2 . 1 1 . . . . . . . . . . . . . . . . . 1 2 . 4 Highest Loss Streak 5 | . 1 2 . 2 1 . . . . 2 . . . . . . 3 . . 1 . 1 2 3 1 5 To Critical Strikes . | . . . . . . . . . . . . . . . . . . . . . . . . . . . Average Backups 18 | 1 11 14 14 12 12 13 12 11 11 18 22 22 22 22 22 22 21 20 21 23 22 22 22 19 23 21 Power 1 | . 2 1 1 . . . . . . . 1 1 1 1 2 1 . 1 1 1 1 1 1 . 1 1 Propulsion 2 | . 2 1 3 2 2 2 2 2 2 3 3 3 3 3 3 3 3 3 3 2 1 2 2 1 3 2 Utility 7 | . 3 4 3 3 3 4 4 4 4 7 11 11 12 13 11 11 10 9 10 10 9 8 9 9 8 8 Weapon 5 | . 3 5 6 4 4 3 2 2 2 4 4 4 3 3 4 4 5 5 5 7 8 7 6 6 6 5 Tool/Special . | . . . . . . . . . . . . . . . . . . . . . . . . . . . Unused Backups 62 | . 5 2 . 6 3 1 2 . . 1 3 1 2 . 1 1 1 . . 3 . 1 7 . 8 14 Power 17 | . 3 2 . 1 . . . . . . 1 . . . . 1 1 . . . . . 5 . 2 1 Propulsion 5 | . . . . 2 . . . . . . 1 . . . . . . . . . . . . . 1 1 Utility 20 | . 1 . . 2 . . 1 . . . 1 1 . . 1 . . . . 1 . 1 2 . 3 6 Weapon 14 | . 1 . . 1 3 . . . . . . . 2 . . . . . . 2 . . . . 2 3 Tool/Special 6 | . . . . . . 1 1 . . 1 . . . . . . . . . . . . . . . 3 Average Slot Usage (%) 91 | . 94 98 99 84 74 93 93 82 93 93 93 93 92 94 90 92 95 94 94 80 88 89 92 89 94 90 Engine 3 | . 11 13 14 11 6 6 2 . . . . . . . . . . . . . . . . . . . Reactor 2 | . . . . . . . . . . . . . 2 5 5 5 5 5 5 4 5 4 4 4 4 4 Wheel 13 | . 28 27 28 25 13 13 13 13 13 10 11 11 11 11 10 10 10 10 10 9 10 9 9 7 8 7 Device 22 | . 11 4 . 1 26 27 26 26 26 31 27 27 30 29 30 30 28 31 31 18 25 24 26 31 33 31 Storage 7 | . 14 14 14 12 9 6 6 6 6 5 5 5 5 5 5 5 5 5 5 5 5 4 6 4 4 8 Processor 16 | . . . . . 4 18 20 20 20 21 23 23 23 23 21 21 21 21 21 21 21 19 20 23 24 20 Hackware 2 | . . . . . . . . . . . . . . . . . 4 5 5 3 . 8 9 8 5 7 Protection 5 | . . 8 14 8 . 6 6 6 6 4 6 6 3 5 7 10 9 5 5 6 10 7 4 . 2 2 Energy Cannon 3 | . . 3 . 3 2 5 6 1 6 1 3 3 2 1 4 4 3 5 5 4 5 5 7 3 4 6 Ballistic Gun 3 | . . 16 . 7 7 6 6 1 6 . . . . . . . . . . . . . . . . . Ballistic Cannon 2 | . . . . 4 . . . . . 8 6 7 7 9 5 4 3 5 5 4 . 2 . 2 3 . Peak Build Rating 182 | 6 10 15 16 22 53 53 58 58 63 84 92 91 97 97 106 113 117 120 120 130 113 125 159 171 173 182 Average Rating 89 | 4 9 11 14 15 35 52 55 50 60 74 84 85 89 95 101 105 106 117 119 120 110 121 143 159 164 168 On Entrance 80 | . 6 9 9 16 18 53 53 58 58 61 84 84 85 94 95 106 107 116 119 119 100 111 125 147 165 172 Avg Prop Armor Cover (%) 3 | . . . . . . . . . . . . . . . . . . . . . . . 3 . . . Naked Turns 122 | . . . . 122 . . . . . . . . . . . . . . . . . . . . . . Heaviest Build 188 | 11 31 42 47 47 66 65 71 71 72 143 146 144 144 145 156 156 156 142 142 184 158 167 159 154 174 188 Greatest Support 32 | 20 20 32 26 26 20 20 20 20 20 26 24 24 24 24 24 24 32 28 28 28 28 28 32 32 32 32 Greatest Overweight (x) 12 | . 1 1 1 1 3 3 3 3 3 12 6 5 5 6 6 6 8 5 5 7 5 5 8 7 6 9 Average Overweight (x) 3 | . . . 1 . 1 3 3 2 3 5 5 5 5 5 5 5 5 5 4 5 5 4 4 3 5 5 Largest Inventory Capacity 25 | 8 15 15 15 15 15 15 15 15 15 25 25 25 25 25 25 25 25 25 25 25 25 25 25 25 25 25 Average Capacity 21 | 6 14 15 15 14 15 15 15 15 15 24 25 25 25 25 25 25 25 25 25 25 25 25 25 25 25 24 Most Carried 25 | 2 15 15 15 15 15 15 15 15 15 25 25 25 25 24 25 25 25 25 25 25 25 25 25 24 25 25 Average Carried 20 | 1 11 14 14 13 14 14 14 15 15 21 24 24 24 23 23 24 24 23 24 24 23 24 24 21 24 23 Final Capacity 25 | 8 15 15 15 15 15 15 15 15 15 25 25 25 25 25 25 25 25 25 25 25 25 25 25 25 25 25 Final Carried 25 | 2 15 15 15 15 15 15 15 15 15 25 24 25 23 24 24 25 24 24 25 24 25 25 23 23 25 20 Class Distribution -------------------- 36% | Skirmisher 29% | Mutant 9% | Scavenger-Skirmisher 8% | Hacker-Skirmisher 8% | Hacker-Mutant 3% | Scavenger-Mutant Dominant Class ---------------- Mutant | -10/Materials Mutant | -10/Subcaves Mutant | -8/Recycling Mutant | -8/Scraptown Mutant | -6/Factory Scavenger-Skirmisher | -6/Lower Caves Scavenger-Skirmisher | -6/Lower Caves Scavenger-Mutant | -6/Data Miner Skirmisher | -5/Proximity Caves Skirmisher | -5/Factory Skirmisher | -5/Upper Caves Skirmisher | -5/Upper Caves Skirmisher | -5/Zhirov Skirmisher | -4/Proximity Caves Skirmisher | -4/Factory Skirmisher | -4/Waste Skirmisher | -4/Factory Skirmisher | -4/Upper Caves Derelict-Skirmisher | -4/Upper Caves Skirmisher | -4/Warlord Skirmisher | -3/Proximity Caves Hacker-Skirmisher | -3/Research Hacker-Skirmisher | -3/Testing Hacker-Mutant | -2/Research Mutant | -2/Quarantine Scavenger-Mutant | -1/Access Resources | -11 -10 -10 -8 -8 -6 -6 -6 -6 -5 -5 -5 -5 -5 -4 -4 -4 -4 -4 -4 -4 -3 -3 -3 -2 -2 -1 ----------- Run | Yrd Mat Sub Rec Scr Fac Low Low Dat Pro Fac Upp Upp Zhi Pro Fac Was Fac Upp Upp War Pro Res Tes Res Qua Acc Matter Collected 11434 | 253 347 747 126 70 256 355 215 . 50 970 748 452 1113 496 382 142 1533 365 55 233 180 216 404 457 657 612 Remotely 1126 | . . . . . . . . . . 177 . . . . 191 . 643 . . . . . . . . 115 Salvage Created 15868 | 91 561 567 553 . 397 274 313 . . 697 316 190 513 194 28 . 1015 64 213 322 175 472 1358 1322 829 5404 Parts 682 | 2 35 38 13 . 18 7 4 . . 28 11 1 9 10 1 . 30 . 2 6 7 23 72 78 46 241 Haulers Intercepted 7 | . 2 . . . . . . . . . 1 . . . . . 1 . . . . . 1 . . 2 Recyclers Shooed 11 | . . . 1 . 3 . . . . 4 . . . . . . 1 . . . . . . . . 2 Parts Field Recycled . | . . . . . . . . . . . . . . . . . . . . . . . . . . . Retrieved Matter . | . . . . . . . . . . . . . . . . . . . . . . . . . . . Parts Self-Destructed 51 | . . 13 . . . 4 4 . . . 11 . 3 10 . . . . . . 6 . . . . . Prevented 5 | . . . . . . . . . . . . . . . . . . . 2 . 3 . . . . . Parts Restored . | . . . . . . . . . . . . . . . . . . . . . . . . . . . Kills | -11 -10 -10 -8 -8 -6 -6 -6 -6 -5 -5 -5 -5 -5 -4 -4 -4 -4 -4 -4 -4 -3 -3 -3 -2 -2 -1 ------- Run | Yrd Mat Sub Rec Scr Fac Low Low Dat Pro Fac Upp Upp Zhi Pro Fac Was Fac Upp Upp War Pro Res Tes Res Qua Acc Combat Hostiles Destroyed 211 | . 8 16 . . 3 4 . . . 9 5 . . 2 1 . 19 . 3 13 2 11 26 28 10 51 Melee 1 | . . . . . . . . . . . . . . . . . . . . 1 . . . . . . Guns 24 | . 6 12 . . 2 . . . . . . . . . . . . . . . . . . 3 1 . Cannons 100 | . . 1 . . 1 . . . . 7 2 . . 2 1 . 14 . 2 2 2 4 15 16 6 25 AOE 53 | . 2 3 . . . 4 . . . 2 3 . . . . . 5 . . 10 . 7 5 7 . 5 Classes Destroyed 23 | 2 5 5 . . 1 1 . . . 1 . . 1 . . . . . . 2 . . 1 2 . 2 Worker 22 | . 2 . . . 2 . . . . 3 . . . . . . . . . . . . 4 1 . 10 Builder 17 | . 1 . . . . . . . . 2 . . . . . . . . . . . . 2 3 1 8 Tunneler 4 | 1 1 . . . . . . . . 1 . . . . . . . . . . . . . 1 . . Hauler 7 | . 2 . . . . . . . . . 1 . . . . . 1 . . . . . 1 . . 2 Recycler 19 | 1 . . 7 . 1 . . . . 3 . . . . . . 3 . . . . 1 . 1 . 2 Mechanic 1 | . . . . . . . . . . . . . . . . . . . . . . . . . . 1 Operator 2 | . . . . . . . . . . 1 . . . . . . . . . . . . . 1 . . Turret 2 | . . 2 . . . . . . . . . . . . . . . . . . . . . . . . Watcher 16 | . 3 . . . . . . . . 1 . . . . . . . . . . . 2 2 1 1 6 Swarmer 38 | . . 2 . . . 4 . . . . . . . . . . 3 . 1 . . 8 9 5 . 6 Saboteur 2 | . . . . . . . . . . . . . . . . . . . . 2 . . . . . . Grunt 70 | . 8 2 . . 1 . . . . 3 5 . . . . . 10 . 1 6 1 . 6 6 4 17 Brawler 2 | . . . . . . . . . . . . . . . . . . . . . . . . . . 2 Duelist 2 | . . . . . . . . . . . . . . . . . . . . . . . . 1 . 1 Sentry 12 | . . 1 . . 1 . . . . 2 . . . 1 . . . . 1 . 1 . . 2 . 3 Specialist 2 | . . . . . . . . . . . . . . . . . . . . 2 . . . . . . Hunter 12 | . . . . . . . . . . . . . . . . . . . . . . . 2 2 . 8 Programmer 59 | . . . . . 1 . . . . 4 . . . 1 1 . 6 . . 3 . 3 9 11 6 14 Behemoth 1 | . . . . . . . . . . . . . . . . . . . . . . . . 1 . . Cobbler 1 | . . 1 . . . . . . . . . . . . . . . . . . . . . . . . Subdweller 11 | . . 11 . . . . . . . . . . . . . . . . . . . . . . . . Scrapoid 2 | . . . . . . . . . . . . . 1 1 . . . . . . . . . . . . Decomposer 2 | . . . . . . . . . . . . 1 . . . . . . 1 . . . . . . . Packrat 6 | . . . . . . 3 2 . . . . 1 . . . . . . . . . . . . . . Samaritan 7 | . . . . . . 1 3 . . . 1 . . . . . . 2 . . . . . . . . Best Kill Streak 10 | 2 5 2 3 . 1 4 . . . 4 4 . . 1 1 . 4 . 3 8 1 4 7 10 4 9 Combat Bots Only 9 | . 2 2 . . 1 4 . . . 3 3 . . 1 1 . 3 . 3 8 1 4 4 9 4 6 Max Kills in Single Turn 7 | 2 2 1 1 . 1 3 1 . . 2 2 1 1 2 1 . 3 1 1 3 1 4 7 5 1 3 Gunslinging . | . . . . . . . . . . . . . . . . . . . . . . . . . . . Exploded 4 | . 2 1 . . . 3 . . . 1 2 . . . . . 3 . . 3 . 4 3 3 . 2 Melee 1 | . . . . . . . . . . . . . . . . . . . . 1 . . . . . . Uniques/NPCs Destroyed . | . . . . . . . . . . . . . . . . . . . . . . . . . . . Combat | -11 -10 -10 -8 -8 -6 -6 -6 -6 -5 -5 -5 -5 -5 -4 -4 -4 -4 -4 -4 -4 -3 -3 -3 -2 -2 -1 -------- Run | Yrd Mat Sub Rec Scr Fac Low Low Dat Pro Fac Upp Upp Zhi Pro Fac Was Fac Upp Upp War Pro Res Tes Res Qua Acc Hostile Shots Fired 1188 | . 41 93 . . 73 5 7 . . 88 27 . . 3 8 . 144 . 3 88 4 38 121 167 44 234 Missed 370 | . 14 28 . . 28 1 2 . . 17 7 . . 1 4 . 49 . 1 38 3 14 31 45 13 74 Hits 818 | . 27 65 . . 45 4 5 . . 71 20 . . 2 4 . 95 . 2 50 1 24 90 122 31 160 Melee 2 | . . . . . . . . . . . . . . . . . . . . 2 . . . . . . Projectile 816 | . 27 65 . . 45 4 5 . . 71 20 . . 2 4 . 95 . 2 48 1 24 90 122 31 160 AOE 3 | . . 1 . . . . . . . . . . . . . . . . . . . 1 . . . 1 Critical Strikes 47 | . 1 2 . . . . . . . 3 3 . . . . . 9 . . 2 . 3 5 10 . 9 Actively Blocked 13 | . . 1 . . . . . . . . . . . . . . . . . . . . . 10 . 2 Part Disruptions 4 | . . . . . . . . . . . . . . . . . 1 . . . . 1 1 1 . . Damage Taken 14418 | . 354 1232 . . 458 54 21 . . 1370 256 . . 25 39 . 1712 . 49 563 39 693 1480 2284 356 3433 Core 2185 | . 108 130 . . 104 12 . . . 126 9 . . . . . 157 . . 48 . 22 235 471 60 703 Absorbed by Shields 2721 | . . . . . . . . . . 227 93 . . 9 15 . 221 . . . . . 378 842 343 593 Redirected to Core 80 | . . . . . . . . . . . . . . . . . . . . . . . . . 13 67 Redirected to Shielding 3 | . . 3 . . . . . . . . . . . . . . . . . . . . . . . . Ignored by Resistances 352 | . . . . . . . . . . . 40 . . 7 25 . . . . 280 . . . . . . Regen/Repaired (Parts) 748 | . . . . 199 . . . . . . . . . . . . . . . 146 . 218 . . 185 . Core Remaining (%) 69 | 100 . . . 4 . . . . 86 . . . . 86 . . . . . . 82 . 80 . 63 56 Volleys Fired 1225 | 2 52 146 2 . 26 15 24 . 4 70 38 6 41 8 6 2 111 5 10 22 11 54 125 117 83 245 Largest 2 | 2 2 2 1 . 2 2 2 . 1 2 2 2 1 2 2 1 2 1 1 1 1 1 1 2 2 2 Hottest 233 | 80 80 113 100 . 104 115 115 . 85 125 136 102 85 110 140 110 220 110 110 110 90 94 110 120 126 233 Shots Fired 1497 | 4 100 199 2 . 45 27 26 . 4 123 52 7 41 12 11 2 160 5 10 22 11 54 126 124 84 246 Gun 290 | 4 96 100 . . 35 12 2 . . 3 . . . . . . . . . . . . . 15 23 . Cannon 1056 | . . 30 . . 6 12 24 . 4 116 49 7 29 12 11 2 155 5 10 18 11 51 123 98 61 222 Launcher 62 | . 4 14 . . 4 3 . . . 4 3 . . . . . 5 . . 1 . . . . . 24 Special 89 | . . 55 2 . . . . . . . . . 12 . . . . . . 3 . 3 3 11 . . Kinetic 411 | . . 97 . . 38 15 2 . . 112 23 2 . 8 5 . 77 . . 12 . . . 19 1 . Thermal 838 | 2 86 92 2 . 6 12 24 . 4 11 29 5 41 4 6 2 83 5 1 6 7 41 78 72 59 160 Explosive 34 | . 4 10 . . 1 . . . . . . . . . . . . . . 3 . 3 3 10 . . Electromagnetic 213 | 2 10 . . . . . . . . . . . . . . . . . 9 . 4 10 45 23 24 86 Entropic 1 | . . . . . . . . . . . . . . . . . . . . 1 . . . . . . Robot Hit Streak 21 | 2 15 19 . . 11 5 5 . . 9 4 6 21 7 4 . 11 13 5 4 3 4 11 16 21 12 Robot Miss Streak 7 | 2 4 3 . . 2 1 2 . . 5 3 . 1 1 2 . 7 1 1 3 1 3 4 2 2 6 Penetration Max 1 | . . . . . . . . . . 1 . . . . . . . . . 1 . . . . . . Secondary Targets 3 | . 2 1 . . . . . . . . . . . . . . . . . . . . . . . . Max Gunslinging Chain 1 | . 1 1 . . . . . . . . . . . . . . . . . . . . . . . . Capacitor 617 | . . . . . . . . . . . . . . . . . 16 5 10 6 11 51 123 94 82 219 Shots Hit Robots 763 | 2 61 81 10 . 30 13 15 . . 62 21 4 37 5 6 . 74 3 8 13 4 22 60 65 28 139 Core Hits 492 | 3 34 38 4 . 15 13 4 . . 27 18 2 13 4 1 . 37 2 4 20 3 14 34 54 15 133 Critical Kills 13 | . . 1 . . . . . . . 6 1 2 . . . . . . . . . . 1 . . 2 Critical Parts Destroyed 10 | . . . . . . . . . . 3 7 . . . . . . . . . . . . . . . Critical Strikes 43 | . . 2 . . . . . . . 19 8 2 . . . . 4 . . 3 . . 1 2 . 2 Meltdown 4 | . . . . . . . . . . . . 1 . . . . . . . . . . 1 . . 2 Destroy 22 | . . 2 . . . . . . . 11 8 1 . . . . . . . . . . . . . . Blast 15 | . . . . . . . . . . 8 . . . . . . 4 . . 3 . . . . . . Sever 2 | . . . . . . . . . . . . . . . . . . . . . . . . 2 . . Melee Attacks 17 | . . . 11 . 6 . . . . . . . . . . . . . . . . . . . . . Impact . | . . . . . . . . . . . . . . . . . . . . . . . . . . . Slashing 17 | . . . 11 . 6 . . . . . . . . . . . . . . . . . . . . . Piercing . | . . . . . . . . . . . . . . . . . . . . . . . . . . . Sneak Attacks 11 | . . . 10 . 1 . . . . . . . . . . . . . . . . . . . . . Combat Hostiles . | . . . . . . . . . . . . . . . . . . . . . . . . . . . Follow-up Attacks . | . . . . . . . . . . . . . . . . . . . . . . . . . . . Damage Inflicted 41927 | 68 905 1957 634 . 850 572 464 . . 2198 1109 109 987 217 220 . 3718 160 284 2775 144 2160 4358 6787 1146 10105 Guns 3699 | 15 681 1275 . . 551 224 . . . . . . . . . . . . . . . . . 435 518 . Cannons 21637 | . . 87 . . 133 91 464 . . 1767 486 109 895 217 220 . 3217 123 284 437 144 922 2711 2133 628 6569 Explosions 15000 | 53 224 595 . . 103 257 . . . 431 623 . . . . . 501 37 . 2227 . 1093 1483 3837 . 3536 Melee 697 | . . . 634 . 63 . . . . . . . . . . . . . . . . . . . . . Ramming . | . . . . . . . . . . . . . . . . . . . . . . . . . . . Kinetic 9361 | . . 1336 . . 654 481 . . . 2139 845 16 . 217 145 . 2649 . . 347 . . . 532 . . Thermal 13713 | 53 608 189 . . 133 91 464 . . . 264 93 987 . 75 . 1069 123 41 143 69 686 1344 1332 628 5321 Explosive 8435 | . 224 432 . . . . . . . 59 . . . . . . . . . 1359 . 1041 1483 3837 . . Electromagnetic 8110 | 15 73 . . . . . . . . . . . . . . . . 37 243 . 75 288 1367 710 518 4784 Impact . | . . . . . . . . . . . . . . . . . . . . . . . . . . . Slashing 1493 | . . . 634 . 63 . . . . . . . . . . . . . . 111 . 145 164 376 . . Piercing . | . . . . . . . . . . . . . . . . . . . . . . . . . . . Entropic 815 | . . . . . . . . . . . . . . . . . . . . 815 . . . . . . Highest Corruption 16 | . . . . . 1 1 1 1 1 9 9 . . . 1 1 4 4 4 4 1 6 16 2 3 6 Average Corruption 4 | . . . . . 1 1 1 1 1 6 8 . . . 1 1 1 4 4 1 1 4 9 1 2 4 Corruption Purged 13 | . . . . . . . . . 1 . 9 . . . . . 1 . . . . . . 2 . . Corruption Blocked . | . . . . . . . . . . . . . . . . . . . . . . . . . . . Effects 217 | . . . . . . 3 7 . 1 33 39 . . . . 4 20 11 18 3 5 7 53 5 8 . Message Errors 59 | . . . . . . 1 2 . . 6 11 . . . . 2 7 3 5 . 1 1 14 2 4 . Matter Fused 55 | . . . . . . . 1 . . 12 9 . . . . 1 8 2 8 . 1 2 8 1 2 . Heat Flow Errors 22 | . . . . . . 1 2 . . 1 3 . . . . . 2 3 . 1 1 1 6 1 . . Energy Discharges 31 | . . . . . . . . . 1 8 5 . . . . 1 1 1 2 . 1 . 9 . 2 . Parts Rejected 2 | . . . . . . . . . . 1 . . . . . . . . . . . . 1 . . . Parts Fused 3 | . . . . . . . . . . . 2 . . . . . . . . . . . 1 . . . Data Loss (minor) 20 | . . . . . . 1 1 . . 1 4 . . . . . . 1 3 2 . 1 6 . . . Data Loss (major) 11 | . . . . . . . . . . 2 3 . . . . . 1 1 . . . . 4 . . . Misfires 5 | . . . . . . . 1 . . 1 . . . . . . . . . . . 1 2 . . . Alerts 5 | . . . . . . . . . . . 2 . . . . . . . . . 1 . 1 1 . . Weapon Failures 4 | . . . . . . . . . . 1 . . . . . . 1 . . . . 1 1 . . . Overload Shots . | . . . . . . . . . . . . . . . . . . . . . . . . . . . Overflow Damage 2079 | . . 2 200 . 17 46 155 . . 109 12 41 137 . 33 . 187 36 35 65 . 119 242 194 . 449 Projectiles 1310 | . . . . . . 46 155 . . 60 12 41 137 . 33 . 137 36 35 10 . 33 84 98 . 393 Explosions 569 | . . 2 . . 17 . . . . 49 . . . . . . 50 . . 55 . 86 158 96 . 56 Melee 200 | . . . 200 . . . . . . . . . . . . . . . . . . . . . . . Knockbacks 44 | . . . . . . . . . . 14 7 . . . 2 . 13 . . 1 . . . 7 . . Impact . | . . . . . . . . . . . . . . . . . . . . . . . . . . . Kinetic 41 | . . . . . . . . . . 14 7 . . . 2 . 12 . . 1 . . . 5 . . Secondary 3 | . . . . . . . . . . . . . . . . . 1 . . . . . . 2 . . Self-Inflicted Damage 230 | . . . . . . . . . . 114 . . . . . . 13 . . . . 30 . . . 73 Shots 11 | . . . . . . . . . . 1 . . . . . . 1 . . . . 1 . . . 8 Rammed . | . . . . . . . . . . . . . . . . . . . . . . . . . . . Targets Rammed . | . . . . . . . . . . . . . . . . . . . . . . . . . . . Kicked . | . . . . . . . . . . . . . . . . . . . . . . . . . . . Crushed . | . . . . . . . . . . . . . . . . . . . . . . . . . . . Highest Temperature 738 | 36 210 . 40 . 99 327 126 . . 415 230 64 160 102 190 . 295 204 64 174 104 424 195 184 174 738 Average Temperature 84 | 20 82 . 22 . 38 106 43 . . 88 99 24 55 37 118 . 96 81 34 70 47 90 65 59 71 144 Received Heat Transfer 1709 | . 216 132 . . 138 . . . . 213 63 . . . . . 400 . . 132 9 . 53 203 20 130 Effects 13 | . . . . . . . . . . 2 . . . . . . . . . . . . . . . 11 Shutdowns 2 | . . . . . . . . . . 1 . . . . . . . . . . . . . . . 1 Energy Bleed 4 | . . . . . . . . . . . . . . . . . . . . . . . . . . 4 Interference 1 | . . . . . . . . . . . . . . . . . . . . . . . . . . 1 Short Circuit 1 | . . . . . . . . . . . . . . . . . . . . . . . . . . 1 Damage (minor) 1 | . . . . . . . . . . 1 . . . . . . . . . . . . . . . . Damage (major) 3 | . . . . . . . . . . . . . . . . . . . . . . . . . . 3 Damage (core) 1 | . . . . . . . . . . . . . . . . . . . . . . . . . . 1 Siege Activations . | . . . . . . . . . . . . . . . . . . . . . . . . . . . Martial Activations . | . . . . . . . . . . . . . . . . . . . . . . . . . . . Shielding Activations . | . . . . . . . . . . . . . . . . . . . . . . . . . . . Robots Disrupted 4 | . . . . . . . . . . . . . 1 . . . 1 . . . . . 1 . . 1 Combat Hostiles 3 | . . . . . . . . . . . . . . . . . 1 . . . . . 1 . . 1 Robots Corrupted 35 | . . . . . . . . . . . . . . . . . . . 1 . . 1 6 2 3 22 Combat Hostiles 30 | . . . . . . . . . . . . . . . . . . . 1 . . . 5 2 3 19 Parts Fried 69 | . . . . . . . . . . . . . . . . . . . 3 . . 3 8 3 4 48 Impact Corruptions . | . . . . . . . . . . . . . . . . . . . . . . . . . . . Robots Melted 4 | . . . . . . . . . . . . 1 . . . . . . . . . . 1 . . 2 Combat Hostiles 3 | . . . . . . . . . . . . . . . . . . . . . . . 1 . . 2 Parts Melted 31 | 1 3 . . . . . 2 . . . . . 1 . . . . . . . . 3 3 4 . 14 Heat Transferred 10374 | 100 1400 336 . . 185 111 555 . . . 296 111 946 . 74 . . . . 50 74 605 444 691 444 3952 Parts Sabotaged 4 | . . . . . . . . . . . . . . . . . . . . 4 . . . . . . Parts Stolen . | . . . . . . . . . . . . . . . . . . . . . . . . . . . Parts Stripped . | . . . . . . . . . . . . . . . . . . . . . . . . . . . Power Chain Reactions 10 | 1 . . . . . . . . . . . . . . . . . 1 . 1 . 1 . . . 6 Alert | -11 -10 -10 -8 -8 -6 -6 -6 -6 -5 -5 -5 -5 -5 -4 -4 -4 -4 -4 -4 -4 -3 -3 -3 -2 -2 -1 ------- Run | Yrd Mat Sub Rec Scr Fac Low Low Dat Pro Fac Upp Upp Zhi Pro Fac Was Fac Upp Upp War Pro Res Tes Res Qua Acc Maximum Alert Level 3 | . . . . . . . . . . 1 . . . . . . 2 . . . . 1 2 3 2 3 Low Security (%) 63 | 100 100 . 100 . 100 . . . . 70 . . . . 100 100 73 . . . . 94 64 15 67 24 Level 1 18 | . . . . . . . . . . 29 . . . . . . 26 . . . . 5 16 52 6 21 Level 2 12 | . . . . . . . . . . . . . . . . . . . . . . . 19 21 26 27 Level 3 5 | . . . . . . . . . . . . . . . . . . . . . . . . 10 . 26 Level 4 . | . . . . . . . . . . . . . . . . . . . . . . . . . . . Level 5 . | . . . . . . . . . . . . . . . . . . . . . . . . . . . High Security . | . . . . . . . . . . . . . . . . . . . . . . . . . . . Max Security . | . . . . . . . . . . . . . . . . . . . . . . . . . . . Peak Influence 969 | . 113 . 140 . 62 . . . . 231 . . . . 40 4 401 . . . . 251 524 796 475 969 Initial 445 | . . . 43 . . . . . . . . . . . . . . . . . . . 132 282 445 88 Average 220 | . 50 . 74 . 20 . . . . 126 . . . . 6 . 162 . . . . 76 206 378 229 490 Influence Increases 8215 | 10 305 218 275 . 226 90 . . . 594 125 . 15 98 61 4 845 . 60 260 40 460 1146 1144 530 1709 Destroy 0b10 Robot/C 4080 | . 160 160 . . 60 80 . . . 180 100 . . 60 20 . 380 . 60 260 40 220 520 560 200 1020 Destroy 0b10 Robot/NC 460 | 10 45 . 35 . 15 . . . . 55 10 . 15 . . . 20 . . . . 15 45 40 10 145 Destroy Leader 684 | . 50 10 . . 20 10 . . . 52 . . . 10 10 . 52 . . . . 34 86 112 32 206 Allied During Kill 31 | . . 3 . . . . . . . . . . . 28 . . . . . . . . . . . . Successful Hack 335 | . 21 . 27 . 24 . . . . 27 . . . . . . 60 . . . . 43 64 . 30 39 Select Force Hacks 210 | . . . 210 . . . . . . . . . . . . . . . . . . . . . . . Disable Machine 765 | . 15 . . . 60 . . . . 90 . . . . 15 . 90 . . . . 30 210 90 105 60 Destroy Structure 1305 | . 14 . 3 . 32 . . . . 190 . . . . 16 4 168 . . . . 118 146 312 108 194 Partial Spotted 30 | . . . . . . . . . . . . . . . . . . . . . . . 15 15 . . Lose Combat Pursuer 315 | . . 45 . . 15 . . . . . 15 . . . . . 75 . . . . . 60 15 45 45 Influence Decreases 7276 | 10 288 145 365 . 226 90 . . . 453 266 . 15 98 61 4 481 364 60 88 212 225 879 854 1173 919 Entered New Map 1148 | . . 9 47 . . . . . . . 53 . . . . . . 136 . . 172 . 103 220 347 61 Time Decay 5054 | 10 278 103 318 . 216 90 . . . 413 213 . 15 98 42 4 411 228 60 78 40 223 556 514 506 638 Lost Part 552 | . 10 10 . . 10 . . . . 40 . . . . . . 70 . . 10 . 2 50 120 10 220 Lost Ally 72 | . . 23 . . . . . . . . . . . . 19 . . . . . . . 20 . 10 . Purge Threat 450 | . . . . . . . . . . . . . . . . . . . . . . . 150 . 300 . Squads Dispatched 49 | . 1 . . . 5 . . . . 8 . . . . 2 . 5 . . . . 1 6 4 4 13 Investigation 5 | . . . . . 1 . . . . 3 . . . . . . . . . . . . . . . 1 Extermination 25 | . . . . . 2 . . . . 3 . . . . . . 4 . . . . 1 4 3 3 5 Reinforcement 14 | . 1 . . . 2 . . . . 1 . . . . . . 1 . . . . . 2 1 1 5 Assault 4 | . . . . . . . . . . . . . . . 2 . . . . . . . . . . 2 Garrison 1 | . . . . . . . . . . 1 . . . . . . . . . . . . . . . . Intercept . | . . . . . . . . . . . . . . . . . . . . . . . . . . . Searches Triggered . | . . . . . . . . . . . . . . . . . . . . . . . . . . . Data Miner Redirects 4 | . . . . . . . . . . 1 . . . . 2 . . . . . . . . . . 1 Construction Impeded 5 | . . . . . . . . . . . . . . . . . . . . . . . 1 1 . 3 Haulers Reinforced 5 | . . . . . 1 . . . . . . . . . . . 1 . . . . . 1 . . 2 Active Scanning Responses . | . . . . . . . . . . . . . . . . . . . . . . . . . . . Cargo Convoy Interrupts . | . . . . . . . . . . . . . . . . . . . . . . . . . . . Stealth | -11 -10 -10 -8 -8 -6 -6 -6 -6 -5 -5 -5 -5 -5 -4 -4 -4 -4 -4 -4 -4 -3 -3 -3 -2 -2 -1 --------- Run | Yrd Mat Sub Rec Scr Fac Low Low Dat Pro Fac Upp Upp Zhi Pro Fac Was Fac Upp Upp War Pro Res Tes Res Qua Acc Distress Signals 13 | . 1 . . . 1 . . . . 2 . . . . . . 2 . . . . . 1 3 . 3 Communications Jammed . | . . . . . . . . . . . . . . . . . . . . . . . . . . . Distress Signals . | . . . . . . . . . . . . . . . . . . . . . . . . . . . Times Spotted 319 | . 14 26 . . 10 4 1 . . 20 6 . . 3 1 . 26 . 2 25 2 16 34 39 20 70 Peak Tracking Total 10 | . 3 2 . . 3 4 1 . . 4 5 . . 2 1 . 6 . 2 10 1 5 5 7 3 7 Tactical Retreats 15 | . . 1 . . 1 . . . . . 1 . . . . . 4 . . . . . 2 1 2 3 Traps | -11 -10 -10 -8 -8 -6 -6 -6 -6 -5 -5 -5 -5 -5 -4 -4 -4 -4 -4 -4 -4 -3 -3 -3 -2 -2 -1 ------- Run | Yrd Mat Sub Rec Scr Fac Low Low Dat Pro Fac Upp Upp Zhi Pro Fac Was Fac Upp Upp War Pro Res Tes Res Qua Acc Traps Triggered 11 | . . 4 . . 2 . . . . 1 . . . . 1 . . . . . . 1 . 2 . . Indirectly . | . . . . . . . . . . . . . . . . . . . . . . . . . . . Trap Hack Attempts . | . . . . . . . . . . . . . . . . . . . . . . . . . . . Triggered . | . . . . . . . . . . . . . . . . . . . . . . . . . . . Disarmed . | . . . . . . . . . . . . . . . . . . . . . . . . . . . Reprogrammed . | . . . . . . . . . . . . . . . . . . . . . . . . . . . Reused . | . . . . . . . . . . . . . . . . . . . . . . . . . . . Traps Extracted . | . . . . . . . . . . . . . . . . . . . . . . . . . . . Installed . | . . . . . . . . . . . . . . . . . . . . . . . . . . . Triggered . | . . . . . . . . . . . . . . . . . . . . . . . . . . . Machines | -11 -10 -10 -8 -8 -6 -6 -6 -6 -5 -5 -5 -5 -5 -4 -4 -4 -4 -4 -4 -4 -3 -3 -3 -2 -2 -1 ---------- Run | Yrd Mat Sub Rec Scr Fac Low Low Dat Pro Fac Upp Upp Zhi Pro Fac Was Fac Upp Upp War Pro Res Tes Res Qua Acc Machines Disabled 59 | . 1 3 . . 4 . . . . 6 . . . . 1 . 6 . . 2 1 2 16 6 7 4 Max in Single Turn 2 | . 1 2 . . 1 . . . . 1 . . . . . . 1 . . 1 1 1 2 1 1 1 Garrison Access 3 | . . . . . . . . . . . . . . . 1 . . . . . . . 1 . 1 . Machines Repaired . | . . . . . . . . . . . . . . . . . . . . . . . . . . . Machines Dismantled . | . . . . . . . . . . . . . . . . . . . . . . . . . . . Machines Sabotaged . | . . . . . . . . . . . . . . . . . . . . . . . . . . . Overloaded Fab Kills . | . . . . . . . . . . . . . . . . . . . . . . . . . . . Hacking | -11 -10 -10 -8 -8 -6 -6 -6 -6 -5 -5 -5 -5 -5 -4 -4 -4 -4 -4 -4 -4 -3 -3 -3 -2 -2 -1 --------- Run | Yrd Mat Sub Rec Scr Fac Low Low Dat Pro Fac Upp Upp Zhi Pro Fac Was Fac Upp Upp War Pro Res Tes Res Qua Acc Machines Accessed 93 | . 6 3 13 3 4 1 1 4 . 9 1 3 4 . 1 . 7 . 1 2 . 4 9 4 11 2 Terminals 36 | . 6 . 6 . 2 . . . . 3 . 1 . . 1 . 2 . . . . 2 4 2 5 2 Fabricators 2 | . . . . . . . . . . . . . . . . . . . . . . 1 1 . . . Repair Stations 7 | . . . . . . . . . . 1 . . . . . . 1 . . . . 1 1 1 2 . Recycling Units 12 | . . . 7 . . . . . . 3 . . . . . . 1 . . . . . . 1 . . Scanalyzers 10 | . . . . . 1 . . . . 2 . . . . . . 2 . . . . . 2 . 3 . Garrison Access 4 | . . . . . 1 . . . . . . . . . . . 1 . . . . . 1 . 1 . Total Hacks 252 | . 20 11 32 26 7 1 1 34 . 16 1 3 17 . 3 . 18 . 1 2 . 11 13 5 25 5 Successful 169 | . 9 11 19 26 2 1 1 34 . 7 1 3 17 . 1 . 5 . 1 2 . 7 7 . 13 2 Failed 81 | . 11 . 13 . 5 . . . . 9 . . . . 2 . 13 . . . . 4 5 5 11 3 Catastrophic 10 | . 2 . . . 1 . . . . . . . . . . . 2 . . . . . 1 . 4 . Database Lockouts 2 | . . . . . . . . . . . . . . . . . . . . . . . 1 . 1 . Manual 86 | . 20 . 26 . 2 . . . . 8 . . . . 3 . 6 . . 1 . 5 3 . 11 1 Terminals 88 | . 20 . 21 . 2 . . . . 4 . 1 . . 3 . 3 . . . . 8 5 3 13 5 Fabricators 2 | . . . . . . . . . . . . . . . . . . . . . . 1 1 . . . Repair Stations 20 | . . . . . . . . . . 2 . . . . . . 8 . . . . 2 3 1 4 . Recycling Units 20 | . . . 11 . . . . . . 5 . . . . . . 3 . . . . . . 1 . . Scanalyzers 21 | . . . . . 3 . . . . 5 . . . . . . 3 . . . . . 3 . 7 . Garrison Access 5 | . . . . . 2 . . . . . . . . . . . 1 . . . . . 1 . 1 . Terminal Hacks 113 | . . 11 3 26 . 1 1 34 . 2 1 3 17 . 1 . . . 1 2 . 3 2 . 3 2 Record 46 | . . 9 . 19 . . . 11 . . . 2 5 . . . . . . . . . . . . . Part Schematic 17 | . . . 1 . . . . 12 . . . . 4 . . . . . . . . . . . . . Robot Schematic 9 | . . . 1 . . . . 8 . . . . . . . . . . . . . . . . . . Robot Analysis 12 | . . . . 7 . . . . . 1 . . 4 . . . . . . . . . . . . . Prototype ID Bank 7 | . . . . . . . . 3 . . . . 4 . . . . . . . . . . . . . Open Door 8 | . . 1 . . . 1 1 . . . 1 1 . . . . . . 1 2 . . . . . . Level Access Points 1 | . . . . . . . . . . . . . . . . . . . . . . . . . . 1 Branch Access Points 1 | . . . . . . . . . . . . . . . . . . . . . . 1 . . . . Emergency Access Points 1 | . . . . . . . . . . . . . . . . . . . . . . . 1 . . . Machine Index 1 | . . . . . . . . . . . . . . . . . . . . . . 1 . . . . Terminal Index 2 | . . . 1 . . . . . . . . . . . . . . . . . . . . . . 1 Unreport Threat 4 | . . . . . . . . . . . . . . . 1 . . . . . . . 1 . 2 . Locate Traps 1 | . . . . . . . . . . . . . . . . . . . . . . . . . 1 . Maintenance Status 1 | . . . . . . . . . . . . . . . . . . . . . . 1 . . . . Recall Investigation 1 | . . . . . . . . . . 1 . . . . . . . . . . . . . . . . Proto ID Catalog 1 | . . 1 . . . . . . . . . . . . . . . . . . . . . . . . Fabricator Hacks 1 | . . . . . . . . . . . . . . . . . . . . . . . 1 . . . Build 1 | . . . . . . . . . . . . . . . . . . . . . . . 1 . . . Repair Station Hacks 10 | . . . . . . . . . . 1 . . . . . . 3 . . . . 2 1 . 3 . Scan Component 8 | . . . . . . . . . . 1 . . . . . . 3 . . . . 1 1 . 2 . Repair 2 | . . . . . . . . . . . . . . . . . . . . . . 1 . . 1 . Recycling Unit Hacks 2 | . . . 2 . . . . . . . . . . . . . . . . . . . . . . . Retrieve Components 2 | . . . 2 . . . . . . . . . . . . . . . . . . . . . . . Scanalyzer 10 | . . . . . 2 . . . . 3 . . . . . . 2 . . . . . 1 . 2 . Insert Component 1 | . . . . . . . . . . 1 . . . . . . . . . . . . . . . . Retrieve Study 9 | . . . . . 2 . . . . 2 . . . . . . 2 . . . . . 1 . 2 . Garrison Access Hacks 2 | . . . . . . . . . . . . . . . . . . . . . . . 1 . 1 . Seal Access 2 | . . . . . . . . . . . . . . . . . . . . . . . 1 . 1 . Unauthorized Hacks 31 | . 9 . 14 . . . . . . 1 . . . . . . . . . . . 2 1 . 4 . Terminals 22 | . 9 . 7 . . . . . . . . . . . . . . . . . . 2 . . 4 . Track 2 | . . . . . . . . . . . . . . . . . . . . . . 1 . . 1 . Assimilate 2 | . 1 . . . . . . . . . . . . . . . . . . . . . . . 1 . Botnet 7 | . 2 . 2 . . . . . . . . . . . . . . . . . . 1 . . 2 . Skim 11 | . 6 . 5 . . . . . . . . . . . . . . . . . . . . . . . Fabricators . | . . . . . . . . . . . . . . . . . . . . . . . . . . . Repair Stations . | . . . . . . . . . . . . . . . . . . . . . . . . . . . Recycling Units 8 | . . . 7 . . . . . . 1 . . . . . . . . . . . . . . . . Tunnel 7 | . . . 7 . . . . . . . . . . . . . . . . . . . . . . . Fedlink 1 | . . . . . . . . . . 1 . . . . . . . . . . . . . . . . Scanalyzers 1 | . . . . . . . . . . . . . . . . . . . . . . . 1 . . . Researchers 1 | . . . . . . . . . . . . . . . . . . . . . . . 1 . . . Garrison Access . | . . . . . . . . . . . . . . . . . . . . . . . . . . . Data Cores Recovered 1 | . . . . . . . . . . 1 . . . . . . . . . . . . . . . . Used . | . . . . . . . . . . . . . . . . . . . . . . . . . . . Hacking Detections 51 | . 6 . 6 . 4 . . . . 6 . . . . 1 . 4 . . . . 4 7 4 7 2 Full Trace Events 4 | . . . . . 1 . . . . 2 . . . . . . . . . . . . . . . 1 Feedback Events 1 | . . . . . 1 . . . . . . . . . . . . . . . . . . . . . Corruption 1 | . . . . . 1 . . . . . . . . . . . . . . . . . . . . . Feedback Blocked . | . . . . . . . . . . . . . . . . . . . . . . . . . . . Robot Schematics Acquired 9 | . . . 1 . . . . 8 . . . . . . . . . . . . . . . . . . Robots Built . | . . . . . . . . . . . . . . . . . . . . . . . . . . . Authchips . | . . . . . . . . . . . . . . . . . . . . . . . . . . . Time . | . . . . . . . . . . . . . . . . . . . . . . . . . . . Total Robot Build Rating . | . . . . . . . . . . . . . . . . . . . . . . . . . . . Part Schematics Acquired 17 | . . . 1 . . . . 12 . . . . 4 . . . . . . . . . . . . . Parts Built 2 | . . . . . . . . . . . . . . . . . . . . . . . 2 . . . Authchips . | . . . . . . . . . . . . . . . . . . . . . . . . . . . Time 69 | . . . . . . . . . . . . . . . . . . . . . . . 69 . . . Total Part Build Rating 18 | . . . . . . . . . . . . . . . . . . . . . . . 18 . . . Part Studies Acquired 9 | . . . . . 2 . . . . 2 . . . . . . 2 . . . . . 1 . 2 . Parts Repaired 2 | . . . . . . . . . . . . . . . . . . . . . . 1 . . 1 . Time 102 | . . . . . . . . . . . . . . . . . . . . . . 16 . . 86 . Parts Recycled . | . . . . . . . . . . . . . . . . . . . . . . . . . . . Recycled Matter . | . . . . . . . . . . . . . . . . . . . . . . . . . . . Retrieved Matter . | . . . . . . . . . . . . . . . . . . . . . . . . . . . Retrieved Components 4 | . . . 4 . . . . . . . . . . . . . . . . . . . . . . . Parts Scanalyzed 1 | . . . . . . . . . . 1 . . . . . . . . . . . . . . . . Part Schematics Acquired . | . . . . . . . . . . . . . . . . . . . . . . . . . . . Parts Damaged 1 | . . . . . . . . . . 1 . . . . . . . . . . . . . . . . Bothacking | -11 -10 -10 -8 -8 -6 -6 -6 -6 -5 -5 -5 -5 -5 -4 -4 -4 -4 -4 -4 -4 -3 -3 -3 -2 -2 -1 ------------ Run | Yrd Mat Sub Rec Scr Fac Low Low Dat Pro Fac Upp Upp Zhi Pro Fac Was Fac Upp Upp War Pro Res Tes Res Qua Acc Used RIF Installer . | . . . . . . . . . . . . . . . . . . . . . . . . . . . Robots Hacked . | . . . . . . . . . . . . . . . . . . . . . . . . . . . Non-combat . | . . . . . . . . . . . . . . . . . . . . . . . . . . . Combat . | . . . . . . . . . . . . . . . . . . . . . . . . . . . Robot Hacks Applied . | . . . . . . . . . . . . . . . . . . . . . . . . . . . Relay Couplers Released . | . . . . . . . . . . . . . . . . . . . . . . . . . . . Fabnet Peak Effective % . | . . . . . . . . . . . . . . . . . . . . . . . . . . . Robots Rewired 1 | . . . . . . . . . . . . . . . . . . . . . . . 1 . . . Allies Hacked 1 | . . . . . . . . . . . . . . 1 . . . . . . . . . . . . Hacks Repelled . | . . . . . . . . . . . . . . . . . . . . . . . . . . . Allies | -11 -10 -10 -8 -8 -6 -6 -6 -6 -5 -5 -5 -5 -5 -4 -4 -4 -4 -4 -4 -4 -3 -3 -3 -2 -2 -1 -------- Run | Yrd Mat Sub Rec Scr Fac Low Low Dat Pro Fac Upp Upp Zhi Pro Fac Was Fac Upp Upp War Pro Res Tes Res Qua Acc Total Allies 10 | . . 3 . . . . . . . . . . 5 . . . . . . . . . 1 . 1 . Largest Group 5 | . . 3 . . . . . . . . . . 5 4 3 . . . . . . . . . 1 . Highest-Rated Group 235 | . . 57 . . . . . . . . . . 235 188 141 . . . . . . . . . 10 . Highest-Rated Ally 47 | . . 19 . . . . . . . . . . 47 47 47 . . . . . . . . . 10 . Total Orders . | . . . . . . . . . . . . . . . . . . . . . . . . . . . Ally Attacks 44 | . . 25 . . . . . . . . . . . 14 5 . . . . . . . . . . . Total Damage 718 | . . 444 . . . . . . . . . . . 274 . . . . . . . . . . . . Kills 8 | . . 7 . . . . . . . . . . . 1 . . . . . . . . . . . . Allies Corrupted 1 | . . . . . . . . . . . . . . . 1 . . . . . . . . . . . Allies Melted 1 | . . . . . . . . . . . . 1 . . . . . . . . . . . . . . Intel | -11 -10 -10 -8 -8 -6 -6 -6 -6 -5 -5 -5 -5 -5 -4 -4 -4 -4 -4 -4 -4 -3 -3 -3 -2 -2 -1 ------- Run | Yrd Mat Sub Rec Scr Fac Low Low Dat Pro Fac Upp Upp Zhi Pro Fac Was Fac Upp Upp War Pro Res Tes Res Qua Acc Active Infowar (turns) 21153 | . . . . 161 770 662 957 86 514 1247 1491 944 628 1031 228 376 1644 653 730 1096 627 629 1637 1402 1377 2263 Optics 20112 | . . . . . . 552 957 86 514 1247 1491 944 628 1031 228 376 1644 653 730 1096 627 629 1637 1402 1377 2263 Sensors 15141 | . . . . . 460 662 957 86 491 995 1491 944 628 1031 228 376 1556 653 730 268 597 629 1282 289 . 788 Terrain 9038 | . . . . . 671 26 . . . 259 . . . 658 228 376 1549 653 730 876 596 596 1316 504 . . Structural 8367 | . . . . 29 30 582 957 86 514 1035 880 707 628 299 . . . . . . . . . 729 1184 707 Traps 2034 | . . . . . 318 . . . . . . 1 . . . . 64 653 730 268 . . . . . . Seismic 12567 | . . . . 132 704 582 957 86 514 993 996 760 261 . 167 376 1065 557 730 348 627 255 . 111 1377 969 Machine Analysis 13619 | . . . . . 32 662 957 86 514 1247 1491 944 628 1031 228 376 1644 653 730 1096 627 629 44 . . . ECM 1 | . . . . . 1 . . . . . . . . . . . . . . . . . . . . . Robot Analysis Total 12 | . . . . 7 . . . . . 1 . . 4 . . . . . . . . . . . . . Derelict Logs Recovered 17 | . . 1 . 4 . 3 1 . . . 3 2 . 1 . . . 2 . . . . . . . . Drone Launches . | . . . . . . . . . . . . . . . . . . . . . . . . . . . Drone Recoveries . | . . . . . . . . . . . . . . . . . . . . . . . . . . . Exploration | -11 -10 -10 -8 -8 -6 -6 -6 -6 -5 -5 -5 -5 -5 -4 -4 -4 -4 -4 -4 -4 -3 -3 -3 -2 -2 -1 ------------- Run | Yrd Mat Sub Rec Scr Fac Low Low Dat Pro Fac Upp Upp Zhi Pro Fac Was Fac Upp Upp War Pro Res Tes Res Qua Acc Turns Passed 27328 | 75 686 2945 722 1905 770 662 957 86 514 1247 1491 944 628 1031 228 376 1644 653 730 1096 627 629 1637 1402 1377 2266 Spaces Moved 16075 | 74 537 2204 508 1933 551 531 784 80 420 617 692 592 222 629 118 215 685 387 418 536 377 316 837 617 686 509 Core 280 | 4 . . . 276 . . . . . . . . . . . . . . . . . . . . . . Treads . | . . . . . . . . . . . . . . . . . . . . . . . . . . . Legs . | . . . . . . . . . . . . . . . . . . . . . . . . . . . Wheels 15795 | 70 537 2204 508 1657 551 531 784 80 420 617 692 592 222 629 118 215 685 387 418 536 377 316 837 617 686 509 Hover . | . . . . . . . . . . . . . . . . . . . . . . . . . . . Flight . | . . . . . . . . . . . . . . . . . . . . . . . . . . . Fastest Speed 50 | 50 80 95 105 50 95 115 115 100 115 115 155 155 155 155 155 155 150 160 153 145 160 145 145 150 150 160 Average Speed 135 | 78 93 105 105 95 106 115 115 102 115 155 155 155 155 159 163 168 159 165 169 178 160 159 161 168 166 177 Slowest Speed 260 | 80 95 115 105 105 115 115 115 115 115 250 170 155 155 170 170 170 210 170 170 230 160 160 250 230 182 260 Overloaded Moves . | . . . . . . . . . . . . . . . . . . . . . . . . . . . Propulsion Burnouts . | . . . . . . . . . . . . . . . . . . . . . . . . . . . Robots Hopped . | . . . . . . . . . . . . . . . . . . . . . . . . . . . Potential Cave-ins 10 | . . 1 . . . . . . . . . . . . . . 4 . . . . 2 . . . 3 Cave-ins Triggered . | . . . . . . . . . . . . . . . . . . . . . . . . . . . Exploration Rate (%) 58 | 5 81 90 87 86 19 67 81 74 69 20 89 62 61 67 5 94 28 68 76 81 66 13 78 22 74 17 Regions Visited 26 Branch Regions 17 Pre-discovered Areas 23 | . . 1 8 6 . . . 1 . . 1 1 3 1 . . . 1 . . . . . . . . Known Exits Taken 21 | . . . 1 1 1 1 1 1 1 1 1 1 1 1 . . 1 1 1 1 1 1 1 1 1 . Unknown Exits Taken 3 | 1 1 1 . . . . . . . . . . . . . . . . . . . . . . . . Scrap Searched 42 | . . 13 . 7 . 2 2 . 2 . 2 3 . 2 . . . 4 3 . 2 . . . . . Spaces Dug 208 | . . 11 2 . 10 . 3 . 4 4 9 1 . 4 1 1 29 1 . 2 4 13 23 27 24 35 Terrain Destroyed 1006 | 8 23 119 3 . 30 41 9 . 4 112 57 2 . 6 5 2 92 2 . 64 4 68 74 149 37 95 Melee 5 | . . . 1 . 4 . . . . . . . . . . . . . . . . . . . . . Projectile 388 | . . 24 2 . 1 9 9 . 4 43 21 2 . 6 5 2 68 2 . 5 4 22 39 38 37 45 AOE 613 | 8 23 95 . . 25 32 . . . 69 36 . . . . . 24 . . 59 . 46 35 111 . 50 Terrain Rammed . | . . . . . . . . . . . . . . . . . . . . . . . . . . . Walls Destroyed . | . . . . . . . . . . . . . . . . . . . . . . . . . . . Machines Disabled . | . . . . . . . . . . . . . . . . . . . . . . . . . . . Actions | -11 -10 -10 -8 -8 -6 -6 -6 -6 -5 -5 -5 -5 -5 -4 -4 -4 -4 -4 -4 -4 -3 -3 -3 -2 -2 -1 --------- Run | Yrd Mat Sub Rec Scr Fac Low Low Dat Pro Fac Upp Upp Zhi Pro Fac Was Fac Upp Upp War Pro Res Tes Res Qua Acc Total 20699 | 83 622 2516 675 1995 684 556 816 83 447 783 1056 611 466 643 147 230 1115 399 437 666 400 433 1115 944 928 1849 Wait 2389 | . 4 95 144 9 41 4 . . 18 21 297 2 177 3 1 . 227 . 3 43 . 28 82 127 81 982 Move 16049 | 73 536 2203 507 1932 550 530 783 79 419 616 691 591 221 628 118 214 684 386 417 535 376 315 836 616 685 508 Hop . | . . . . . . . . . . . . . . . . . . . . . . . . . . . Pick Up 235 | 2 18 15 1 22 10 2 2 . . 21 7 2 5 1 4 1 10 1 2 11 5 6 15 18 24 30 Fast Attach 120 | 6 2 6 2 7 14 . 1 2 2 6 2 2 6 . 2 2 11 1 1 15 . 3 7 9 4 7 Attach 111 | . . 9 1 4 3 . . . . 8 1 1 1 . 5 3 11 1 . 6 2 5 8 14 3 25 Detach 68 | . 1 5 1 2 . . . . 1 5 1 1 1 . 5 3 10 1 . 8 . 3 4 6 3 7 Swap 218 | . 3 24 2 6 8 3 . . 1 21 10 3 3 3 3 . 34 2 2 4 4 14 20 12 18 18 Drop 236 | . 6 13 4 13 18 2 5 2 2 15 9 3 10 . 3 5 14 2 2 22 2 5 17 9 27 26 Fire 1225 | 2 52 146 2 . 26 15 24 . 4 70 38 6 41 8 6 2 111 5 10 22 11 54 125 117 83 245 Melee 17 | . . . 11 . 6 . . . . . . . . . . . . . . . . . . . . . Ram . | . . . . . . . . . . . . . . . . . . . . . . . . . . . Kick . | . . . . . . . . . . . . . . . . . . . . . . . . . . . Crush . | . . . . . . . . . . . . . . . . . . . . . . . . . . . Escape Stasis 24 | . . . . . 8 . . . . . . . . . . . . . . . . . . 16 . . Rewire 3 | . . . . . . . 1 . . . . . 1 . . . . . . . . . 1 . . . Trap . | . . . . . . . . . . . . . . . . . . . . . . . . . . . Miscellaneous 4 | . . . . . . . . . . . . . . . . . 3 . . . . . . . . 1 Route ------- -11/Scrapyard -10/Materials (discovered 4 exits: [*Mat x2] / [*Min] / *Sub) -10/Subcaves (discovered 3 exits: [*Mat x2] / *Rec) -8/Recycling -8/Scraptown (discovered 2 exits: *Fac x2) -6/Factory (discovered 6 exits: Fac x4 / *Low x2) -6/Lower Caves -6/Lower Caves (discovered 2 exits: Fac / *Dat) -6/Data Miner -5/Proximity Caves -5/Factory (discovered 2 exits: Fac / *Upp) -5/Upper Caves -5/Upper Caves (discovered 2 exits: Fac / *Zhi) -5/Zhirov -4/Proximity Caves -4/Factory (discovered 5 exits: Res x3 / Upp / [*Ext]) -4/Waste -4/Factory (discovered 2 exits: *Res / *Upp) -4/Upper Caves -4/Upper Caves (discovered 2 exits: Res / *War) -4/Warlord -3/Proximity Caves -3/Research (discovered 3 exits: Arm / *Tes x2) -3/Testing -2/Research -2/Quarantine -1/Access To Epsilon Eridani History --------- Turn | Location | Event 2 | -11/Scrapyard | Met Revision 17 3 | -11/Scrapyard | Discovered new exit (range 15) 76 | -11/Scrapyard | Entered Materials 309 | -10/Materials | Build established: Mutant 334 | -10/Materials | Discovered new exit (range 15) 505 | -10/Materials | Discovered new exit (range 7) 666 | -10/Materials | Learned location of 2 exits from Mines 702 | -10/Materials | Discovered new exit (range 11) 706 | -10/Materials | Discovered new exit (range 5) 715 | -10/Materials | Learned Recycling recycling unit intel 755 | -10/Materials | Learned 2 Storage zone layouts 762 | -10/Materials | Entered Subcaves 863 | -10/Subcaves | A swath of the cavern ceiling suddenly collapsed 977 | -10/Subcaves | Visited 4L-MR0's lab 1154 | -10/Subcaves | Discovered new exit (range 13) 1416 | -10/Subcaves | Ambushed by Subdweller buried in earth 1439 | -10/Subcaves | Core integrity fell below 50% 1468 | -10/Subcaves | Ambushed by Subdweller buried in earth 1723 | -10/Subcaves | Curiously followed by a Cobbler waking with a query about "LVR3C" 1738 | -10/Subcaves | Ambushed by Subdweller buried in earth 1816 | -10/Subcaves | Core integrity fell below 20% 1855 | -10/Subcaves | A swath of the cavern ceiling suddenly collapsed 1991 | -10/Subcaves | Build established: Scavenger-Mutant 2163 | -10/Subcaves | Disturbed a concealed Subdweller 2347 | -10/Subcaves | Build established: Mutant 2470 | -10/Subcaves | Shifting Twisted Machinery released Spk. Treads 2470 | -10/Subcaves | Shifting Twisted Machinery released Shrapnel Trap 2474 | -10/Subcaves | Discovered new exit (range 9) 2496 | -10/Subcaves | Learned location of Mines (-10) 2638 | -10/Subcaves | Visited triangular shrine 2645 | -10/Subcaves | Found Prototype Device 2645 | -10/Subcaves | Identified V3-11A's Pendant 2650 | -10/Subcaves | Befriended Subdweller 2858 | -10/Subcaves | Ambushed by Subdwellers from Twisted Machinery 2860 | -10/Subcaves | Befriended Subdweller 2865 | -10/Subcaves | Befriended Subdweller 3010 | -10/Subcaves | Disturbed a concealed Subdweller 3627 | -10/Subcaves | Lost 3 allies 3652 | -10/Subcaves | Discovered new exit (range 12) 3707 | -10/Subcaves | Entered Recycling 3708 | -8/Recycling | Loaded intel: 7 recycling unit locations 4262 | -8/Recycling | Learned Storage trap positions 4318 | -8/Recycling | Identified exit to Scraptown 4336 | -8/Recycling | Learned Storage stockpile data 4337 | -8/Recycling | Learned Factory garrison access intel 4340 | -8/Recycling | Learned Factory stockpile data 4354 | -8/Recycling | Learned Factory emergency access door positions 4403 | -8/Recycling | Scanned before Scraplab entrance 4418 | -8/Recycling | Entered Scraplab 4429 | -8/Recycling | Entered Scraptown 4644 | -8/Scraptown | Scanned Subdweller tech in exchange for log data 4646 | -8/Scraptown | Learned location of Warlord (-4) 4647 | -8/Scraptown | Learned Factory terminal intel 4648 | -8/Scraptown | Learned location of 1 exit from Factory 4649 | -8/Scraptown | Learned Research non-interactive machine intel 4665 | -8/Scraptown | Discovered new exit (range 7) 4738 | -8/Scraptown | Visited Comm Corps 4780 | -8/Scraptown | Visited Cave Peace 4807 | -8/Scraptown | Learned location of Extension (-4) 4840 | -8/Scraptown | Visited Bundlers 4929 | -8/Scraptown | Visited IN-MT5's Study 4969 | -8/Scraptown | Visited CR-KLE's Repair Center 4975 | -8/Scraptown | Visited Fellowship of the Rings 4987 | -8/Scraptown | Visited SPCMW 5012 | -8/Scraptown | Visited UFD Registry 5012 | -8/Scraptown | Registered with UFD as "Deathbot" 5037 | -8/Scraptown | Visited Abandonware Association 5057 | -8/Scraptown | Learned abandonware demo "SHUTEYE.EXE" 5057 | -8/Scraptown | Learned abandonware demo "REVENGE.EXE" 5083 | -8/Scraptown | Visited Derelict Rescue Squad 5095 | -8/Scraptown | Found DRS Beacon 5116 | -8/Scraptown | Visited Observation Area 5353 | -8/Scraptown | Visited Curators Association 5386 | -8/Scraptown | Visited Analyses Database 5408 | -8/Scraptown | Visited Scrapoid Pod Storage 5414 | -8/Scraptown | Found Scrapoid Pod 5428 | -8/Scraptown | Visited A0-MCA Data Center 5434 | -8/Scraptown | Given a B+ rating by A0-MCA 5437 | -8/Scraptown | Found A0-MCA's Component Scanner 5458 | -8/Scraptown | Visited Supply Room 5517 | -8/Scraptown | Visited Junk Repository 5554 | -8/Scraptown | Visited Cartography Club 5568 | -8/Scraptown | Released all parts (7) 5578 | -8/Scraptown | Found Surveybot 17 Chip 5652 | -8/Scraptown | Learned location of Recycling (-8) 5652 | -8/Scraptown | Learned location of Upper Caves (-5) 5652 | -8/Scraptown | Learned location of Testing (-3) 5652 | -8/Scraptown | Learned 16 Factory zone layouts 5652 | -8/Scraptown | Learned 20 Factory zone layouts 5652 | -8/Scraptown | Learned 8 Access zone layouts 5652 | -8/Scraptown | Learned 4 Recycling zone layouts 5652 | -8/Scraptown | Learned 20 Upper Caves zone layouts 5652 | -8/Scraptown | Learned location of 3 exits from Factory 5652 | -8/Scraptown | Learned 20 Proximity Caves zone layouts 5652 | -8/Scraptown | Learned location of 1 exit from Research 5652 | -8/Scraptown | Identified exit to Factory 5690 | -8/Scraptown | Found Deep Structural Scanner 6112 | -8/Scraptown | CR-KLE repaired 6 parts 6278 | -8/Scraptown | Met Optimus 6278 | -8/Scraptown | Accepted into 0bPrime 6334 | -8/Scraptown | Entered Factory 6334 | -6/Factory | Evolved 8 slots: Utility x8 6335 | -6/Factory | Identified exit to Factory 6336 | -6/Factory | Identified exit to Lower Caves 6340 | -6/Factory | Loaded intel: 25 terminal locations 6341 | -6/Factory | Loaded intel: 4 garrison access locations 6442 | -6/Factory | Spotted B-75 Beast 7104 | -6/Factory | Entered Lower Caves 7174 | -6/Lower Caves | Build established: Scavenger-Skirmisher 7437 | -6/Lower Caves | Learned Factory emergency access door positions 7544 | -6/Lower Caves | Learned Factory garrison access intel 7603 | -6/Lower Caves | Learned Factory interactive machine intel 7628 | -6/Lower Caves | Discovered new exit (range 13) 7703 | -6/Lower Caves | Identified exit to Lower Caves 7766 | -6/Lower Caves | Entered another Lower Caves area 7768 | -6/Lower Caves | Discovered exit to Factory (range 16) 8067 | -6/Lower Caves | Encountered a Warlord checkpoint 8151 | -6/Lower Caves | Learned location of 1 exit from Factory 8390 | -6/Lower Caves | Discovered new exit (range 21) 8493 | -6/Lower Caves | Found Prototype Device 8653 | -6/Lower Caves | Identified exit to Data Miner 8692 | -6/Lower Caves | Spotted B-75 Beast 8723 | -6/Lower Caves | Entered Data Miner 8723 | -6/Data Miner | Discovered new exit (range 6) 8739 | -6/Data Miner | Met Data Miner 8764 | -6/Data Miner | Learned location of Section 7 (-2) 8764 | -6/Data Miner | Acquired the access code to Warlord's prototype stash 8783 | -6/Data Miner | Received God Mode back door access code from Data Miner 8807 | -6/Data Miner | Identified exit to Proximity Caves 8809 | -6/Data Miner | Entered Proximity Caves 9171 | -5/Proximity Caves | Build established: Skirmisher 9323 | -5/Proximity Caves | Entered Factory 9323 | -5/Factory | Evolved 2 slots: Utility x2 9324 | -5/Factory | Identified exit to Upper Caves 9324 | -5/Factory | Identified exit to Factory 9326 | -5/Factory | Loaded intel: 53 interactive machine locations 9327 | -5/Factory | Loaded intel: 4 garrison access locations 9817 | -5/Factory | Incoming investigation squad redirected 9821 | -5/Factory | Found Hvy. Insulated Plating 10375 | -5/Factory | Loaded intel: 8 recycling unit locations 10556 | -5/Factory | Garrison activated, responded to threat 10570 | -5/Factory | Entered Upper Caves 10571 | -5/Upper Caves | Identified exit to Upper Caves 10804 | -5/Upper Caves | Encountered a Warlord checkpoint 10806 | -5/Upper Caves | Learned 4 Factory zone layouts 11097 | -5/Upper Caves | Learned 4 Factory zone layouts 12061 | -5/Upper Caves | Entered another Upper Caves area 12390 | -5/Upper Caves | Entered a destroyed Warlord outpost 12480 | -5/Upper Caves | Learned location of 1 exit from Factory 12646 | -5/Upper Caves | Discovered new exit (range 15) 12697 | -5/Upper Caves | Identified exit to Zhirov 13005 | -5/Upper Caves | Entered Zhirov 13005 | -5/Zhirov | Discovered new exit (range 3) 13061 | -5/Zhirov | Learned location of Quarantine (-2) 13061 | -5/Zhirov | Learned location of Command (-1) 13110 | -5/Zhirov | Found Alien Artifact 13110 | -5/Zhirov | Identified Integrated Reactor 13110 | -5/Zhirov | Installed Integrated Reactor, increased core energy generation (+10) 13132 | -5/Zhirov | Found Alien Artifact 13495 | -5/Zhirov | Scrapoid Pod released 05105-D (x5) 13630 | -5/Zhirov | Identified exit to Proximity Caves 13633 | -5/Zhirov | Entered Proximity Caves 13633 | -4/Proximity Caves | Accompanied by 4 allies 13863 | -4/Proximity Caves | Found DCF Scrap (14 items) 14025 | -4/Proximity Caves | Discovered exit to Factory (range 17) 14161 | -4/Proximity Caves | Attracted the attention of an 0b10 checkpoint 14664 | -4/Proximity Caves | Entered Factory 14664 | -4/Factory | Accompanied by 3 allies 14664 | -4/Factory | Evolved 2 slots: Utility x2 14665 | -4/Factory | Identified exit to Research 14666 | -4/Factory | Identified exit to Upper Caves 14706 | -4/Factory | Incoming assault squad redirected 14716 | -4/Factory | Incoming assault squad redirected 14720 | -4/Factory | Lost 3 allies 14842 | -4/Factory | Discovered new exit (range 8) 14892 | -4/Factory | Sucked down chute 14892 | -4/Factory | Entered Waste 14892 | -4/Waste | The area was eerily silent 14948 | -4/Waste | Found Damper Plating 15071 | -4/Waste | Discovered new exit (range 22) 15113 | -4/Waste | Found Prototype Device 15113 | -4/Waste | Identified Femtoactuators 15266 | -4/Waste | Identified exit to Factory 15268 | -4/Waste | Entered Factory 16471 | -4/Factory | Lost 3 parts (3u) 16639 | -4/Factory | Discovered exit to Research (range 24) 16655 | -4/Factory | Found Quantum Capacitor 16873 | -4/Factory | Discovered exit to Upper Caves (range 22) 16912 | -4/Factory | Entered Upper Caves 17258 | -4/Upper Caves | Spotted B-86 Titan 17343 | -4/Upper Caves | Identified exit to Upper Caves 17565 | -4/Upper Caves | Entered another Upper Caves area 17579 | -4/Upper Caves | Discovered exit to Research (range 14) 17983 | -4/Upper Caves | Attracted the attention of an 0b10 checkpoint 18116 | -4/Upper Caves | Discovered new exit (range 22) 18127 | -4/Upper Caves | Build established: Derelict-Skirmisher 18148 | -4/Upper Caves | Identified exit to Warlord 18295 | -4/Upper Caves | Entered Warlord 18351 | -4/Warlord | Discovered new exit (range 24) 18360 | -4/Warlord | System corruption cleaned by Quarantine Array 18569 | -4/Warlord | Found Prototype Special Weapon 18572 | -4/Warlord | Found Prototype Special Weapon 18573 | -4/Warlord | Identified RU-N14's Throwing Claymores v3 (x2) 18579 | -4/Warlord | Found RU-N14's Throwing Claymores v3 18585 | -4/Warlord | Found RU-N14's Throwing Claymores v3 18596 | -4/Warlord | Found RU-N14's Throwing Claymores v3 18605 | -4/Warlord | Found RU-N14's Throwing Claymores v3 18752 | -4/Warlord | Opened Warlord's prototype stash 18842 | -4/Warlord | Build established: Skirmisher 18844 | -4/Warlord | Rebuked by Warlord 18869 | -4/Warlord | Warlord's base attacked by MAIN.C 18959 | -4/Warlord | Found Prototype Energy Gun 18959 | -4/Warlord | Identified Vortex Rail 18965 | -4/Warlord | Found Prototype Launcher 18965 | -4/Warlord | Identified Vortex Catalyst Activator 19127 | -4/Warlord | Spotted B-90 Cyclops 19219 | -4/Warlord | Warlord forces counterattacked 19308 | -4/Warlord | Opened side exit 19371 | -4/Warlord | Spotted Striker 19374 | -4/Warlord | Destroyed 8 combat bots 19385 | -4/Warlord | Identified exit to Proximity Caves 19391 | -4/Warlord | Entered Proximity Caves 19393 | -3/Proximity Caves | Attracted the attention of an 0b10 checkpoint 19515 | -3/Proximity Caves | Found Alien Artifact 19747 | -3/Proximity Caves | Discovered exit to Research (range 22) 20018 | -3/Proximity Caves | Entered Research 20018 | -3/Research | Evolved 2 slots: Utility x2 20019 | -3/Research | Identified exit to Armory 20020 | -3/Research | Loaded intel: 66 non-interactive machine locations 20051 | -3/Research | Identified exit to Testing 20248 | -3/Research | Found Quantum Capacitor 20264 | -3/Research | Spotted B-86 Titan 20419 | -3/Research | Repaired Lyr. Medium Armor Plating 20431 | -3/Research | Spotted B-86 Titan 20608 | -3/Research | Build established: Hacker-Skirmisher 20647 | -3/Research | Entered Testing 20700 | -3/Testing | Found Spectral Analyzer 20762 | -3/Testing | Found Imp. Potential Cannon 20861 | -3/Testing | Fabricated Quantum Reactor (x2) 21007 | -3/Testing | Found Gamma Bomb Array 21209 | -3/Testing | Central database locked down 21308 | -3/Testing | Found Quantum Capacitor 21331 | -3/Testing | System corruption reached 10% 21447 | -3/Testing | Discovered new exit (range 21) 21739 | -3/Testing | Found AEGIS Remote Shield 21906 | -3/Testing | Identified exit to Research 22047 | -3/Testing | Identified Dimensional Node Initializer 22047 | -3/Testing | Initialized slip node 22172 | -3/Testing | Found Exp. Hardlight Generator 22284 | -3/Testing | Entered Research 22284 | -2/Research | Evolved 2 slots: Utility x2 22342 | -2/Research | Build established: Hacker-Mutant 22613 | -2/Research | Spotted B-90 Cyclops 22690 | -2/Research | Destroyed B-90 Cyclops 22819 | -2/Research | Lost 3 parts (1u2w) 23030 | -2/Research | Spotted B-90 Cyclops 23258 | -2/Research | Lost 3 parts (1n2u) 23284 | -2/Research | Destroyed 9 combat bots 23680 | -2/Research | Discovered new exit (range 4) 23684 | -2/Research | Identified exit to Quarantine 23686 | -2/Research | Entered Quarantine 23959 | -2/Quarantine | Repaired Broken Centrium Wheel 24038 | -2/Quarantine | Found Imp. Powered Armor 24374 | -2/Quarantine | Build established: Mutant 24407 | -2/Quarantine | Central database locked down 24463 | -2/Quarantine | Found Dimensional Node Initializer 24479 | -2/Quarantine | Found Alien Artifact 24525 | -2/Quarantine | Found Alien Artifact 24525 | -2/Quarantine | Identified Phase Redirector 24539 | -2/Quarantine | Initialized slip node 24592 | -2/Quarantine | Found Quantum Capacitor 24742 | -2/Quarantine | Cryocooling Duct disabled 24757 | -2/Quarantine | Ambient heat levels rising (+20) 24757 | -2/Quarantine | Non-combat units ordered to evacuate 24878 | -2/Quarantine | Discovered new exit (range 7) 24931 | -2/Quarantine | Identified exit to Access 24963 | -2/Quarantine | Found Alien Artifact 25063 | -2/Quarantine | Entered Access 25063 | -1/Access | Evolved 2 slots: Utility x2 25699 | -1/Access | Found Faulty Exp. Shield Generator 25702 | -1/Access | Found Exp. Shield Generator 25712 | -1/Access | Found Exp. Shield Generator 25802 | -1/Access | Identified exit to Surface 25858 | -1/Access | Build established: Scavenger-Skirmisher 26313 | -1/Access | First assault squad dispatched 26328 | -1/Access | Incoming assault squad redirected 26599 | -1/Access | Build established: Scavenger-Mutant 27255 | -1/Access | Build established: Hacker-Mutant 27329 | *** | Escaped! Last Messages --------------- 27321_ Destroyed Adv. Heat Sink. 27321_ K-01 Serf collects debris. 27322_ Power failure, Quantum Reactor shutdown. 27322_ Overheating: Core damaged (-256). 27323_ Destroyed Sml. Battery. 27323_ Destroyed Imp. Antigrav System. 27323_ Centrium Wheel+ destroyed. 27324_ Overheating: Energy bleed (-120). 27324_ Destroyed Adv. Heat Sink. 27324_ Destroyed Gamma Rifle. 27324_ K-01 Serf collects debris. 27325_ Quantum Capacitor broken. 27325_ Overheating: Short circuit. 27326_ Overheating: System interference. 27326_ Spectral Analyzer temporarily disabled. 27326_ K-01 Serf collects debris. 27328_ U-05 Engineer builds a Wall. 27329_ Overheating: Energy bleed (-228). [Achievement: Inspector Gadget] [Achievement: Mad Max] Map ----- +----------------------------------------------------+ | ## # # ####?????? | | ## # # ####?????? | | ## " # # ??? ####?????? | | # """" # # ?? ####?????? | | # """"" ########+###+##### ####?????? | | # """"" / =%= =%[ #####????? | | / """" ##### *[ # ????? | | # " #####+##+##+#########/### # ! ?? | | # ##### # # # | | ## ##### # # # | | ## ##### " # # #? =! | | ## ##### """ # # #? = | | ## ##### """# # #? | | ################## " # # #? | | ############### # ] # # ? | | ############### # # + ??? | | " ################################### # "????? | | "" #####??????####### ############ # ?????? | | """#####??????###### ## ####### ## #?????? | | " ####???????####### ##"######=#|[####?????? | | ####?????????#######%###### #######%%# ##?????? | | ####????????? """"!! %%% #%##?????? | | ####????????? """" =! p%! !"###?????? | | #######??????????"""" """" | k=! %#!##?????? | | ?????????????" " %! ====!=#! #?????? | | ????????" " "@! !! u%=!%|# ##?????? | | ????????" " "=%! /! !k!!!# #?????? | | ????????" = = [%[%!;*##?????? | | ########## ?????"""" "" =*%%==!# ##?????? | | ###### ?????"""" ==[ %%k# ##?????? | | ###### ?????"""" u"T %####?????? | | ########?????#############"#######u ####?????? | | ?????????????????#####################! ####?????? | | ?????????????????##################### ####?????? | | ?????????????????##### ## ####?????? | | ?????????????????????????????????????# #????????? | | ?????????????????????????????????????# #????????? | | ?????????????????????????????????????# #????????? | | ?????????????????????????????????????# #????????? | | ?????????????????????????????????????# #????????? | | ?????????????????????????????????????? ????????? | | ?????????????????????????????????????? ????????? | | ?????????????????????????????????????? ????????? | | ?????????????????????????????????????? ????????? | | ??????????????????????????????????????####???????? | | ?????????????????????????????????????????????????? | | ?????????????????????????????????????????????????? | | ?????????????????????????????????????????????????? | | ?????????????????????????????????????????????????? | | ?????????????????????????????????????????????????? | +----------------------------------------------------+ Best States ------------- Heat Dissipation 128 Coolant Potential 120 Energy Generation 41 Energy Capacity 1350 Matter Stores 300 Matter Capacity 500 Sight Range 24 Robot Scan Range 16 Terrain Scan Range 24 Terrain Scan Density 1210 Power Amplification 30 Corruption Containment 20 Armor Coverage 1825 Resistance: EM 90 Core Shielding 20 Weapon Cycling 20 Evasion (%) 50 Target Analysis 6 Core Analysis 6 Recoil Reduction 6 Matter Filtering 50 Energy Filtering 30 Offensive Hacking 22 Defensive Hacking 14 Item Schematics ----------------- Huge Storage Unit | -8/Recycling | Hacked Combat Drone Bay | -6/Data Miner | Free Lgt. Regenerative Plating | -6/Data Miner | Free Imp. Antigrav System | -6/Data Miner | Free Lrn. Terrain Scanner | -6/Data Miner | Free Hvy. Disruptor Cannon | -6/Data Miner | Free Phase Gun | -6/Data Miner | Free Imp. Matter Compressor | -6/Data Miner | Free Enh. Flexi-carbon Leg | -6/Data Miner | Free Enh. Force Rifle | -6/Data Miner | Free Imp. Recalibrator | -6/Data Miner | Free Adv. Medium Treads | -6/Data Miner | Free Arm. Heavy Treads | -6/Data Miner | Free Assault Drone Bay | -5/Zhirov | Free Exp. Heat Sink | -5/Zhirov | Free Exp. Optical Array | -5/Zhirov | Free Imp. Arc Thrower | -5/Zhirov | Free Robot Schematics ------------------ M-28 Smith | -8/Recycling | Hacked Y-64 Sentinel | -6/Data Miner | Free R-10 Processor | -6/Data Miner | Free X-67 Chaingunner | -6/Data Miner | Free E-15 Imp | -6/Data Miner | Free L-61 Swordsman | -6/Data Miner | Free M-22 Extractor | -6/Data Miner | Free A-15 Conveyor | -6/Data Miner | Free G-50 Soldier | -6/Data Miner | Free Fabricated ------------ Quantum Reactor | x2 | -3/Testing | Preloaded Repaired ---------- Lyr. Medium Armor Plating | 33% | -3/Research Centrium Wheel | 7% | -2/Quarantine | Broken Studied --------- Wheel | -6/Factory | Hacked Com. Wheel | -6/Factory | Hacked Arm. Wheel | -5/Factory | Hacked Hyp. Gauss Cannon | -5/Factory | Hacked Hardcell Cannon | -4/Factory | Hacked Lgt. Antimatter Reactor | -4/Factory | Hacked Com. HERF Cannon | -3/Testing | Hacked Enh. Nova Cannon | -2/Quarantine | Hacked Centrium Wheel | -2/Quarantine | Hacked Alien Tech Used ----------------- Integrated Reactor Dimensional Node Initializer Phase Redirector Achievements -------------- Art Critic Civilization 2243 Freedom! Infodabbler Inspector Gadget Link The Feds Live, Flee, And Rebuild Mad Max SUBSUB That Tickles We Love MA Wiki Contributor You May Approach The Wall Challenges ------------ None Game ------ Seed ArmorGrenadeSuperbattery Manual? 0 Play Time 05:12:24 Cumulative 249.9 hours Start 2025.12.05 @ 09:09:22 End 2025.12.13 @ 21:30:16 Sessions 7 Manual Loads 0 Difficulty Rogue Special Mode None Game No. 102 Rogue 102 Adventurer 0 Explorer 0 Win Type 0 Total 24 Types 8/3/6/2/1/0/0/1/1/2 Lore% 78 Gallery% 76 Achievement% 55 Wizard Run 0 Options --------- Layout 0 ASCII 0 Keyboard 1 Movement Vi Keybinds 0 Fullscreen 2 Font 18/SmallcapsGlow Map View 76x50 Zoom Use 0% Tactical HUD 1 Map Filters NONE Filters NONE Steam 1 RUN: 4a652bce-97c3-46fa-bee9-950fa03d3d19